[Event "Late-Titled-Tuesday-Blitz-June-18-2024"]
[Site "Chess.com"]
[Date "2024.06.18"]
[Round "1"]
[White "miraitrunks"]
[Black "newyorkmouse"]
[Result "0-1"]
[WhiteElo "2179"]
[BlackElo "2579"]
[TimeControl "180+1"]
[EndTime "14:06:42 PDT"]
[Termination "newyorkmouse won by checkmate"]

1. e4 {[%clk 0:02:59.3]} 1... c5 {[%clk 0:02:58.8]} 2. Nf3 {[%clk 0:02:59.6]}
2... d6 {[%clk 0:02:59.2]} 3. d4 {[%clk 0:02:59.9]} 3... cxd4 {[%clk 0:02:59.4]}
4. Nxd4 {[%clk 0:03:00.5]} 4... Nf6 {[%clk 0:02:59.9]} 5. Nc3 {[%clk 0:03:00.8]}
5... a6 {[%clk 0:03:00.6]} 6. Qf3 {[%clk 0:02:56.6]} 6... Bd7 {[%clk 0:02:58.2]}
7. Bg5 {[%clk 0:02:56.5]} 7... e6 {[%clk 0:02:55.7]} 8. O-O-O {[%clk 0:02:56.2]}
8... Nc6 {[%clk 0:02:55.1]} 9. e5 {[%clk 0:02:39]} 9... Nxe5 {[%clk 0:02:23.3]}
10. Qxb7 {[%clk 0:02:36.7]} 10... Be7 {[%clk 0:02:22.6]} 11. f4 {[%clk
0:02:32.7]} 11... Neg4 {[%clk 0:02:20.2]} 12. Nc6 {[%clk 0:02:32]} 12... Qc8
{[%clk 0:02:13.7]} 13. Qxc8+ {[%clk 0:02:14.8]} 13... Rxc8 {[%clk 0:02:14.6]}
14. Nxe7 {[%clk 0:02:14.3]} 14... Kxe7 {[%clk 0:02:15.5]} 15. Bxf6+ {[%clk
0:02:13.8]} 15... gxf6 {[%clk 0:02:13.1]} 16. Rd2 {[%clk 0:02:13.7]} 16... a5
{[%clk 0:02:10.5]} 17. h3 {[%clk 0:02:12]} 17... Ne3 {[%clk 0:02:10.1]} 18. Bb5
{[%clk 0:01:56.8]} 18... Rxc3 {[%clk 0:01:39.5]} 19. Bxd7 {[%clk 0:01:53.5]}
19... Rc4 {[%clk 0:01:39.2]} 20. Bb5 {[%clk 0:01:40.9]} 20... Rxf4 {[%clk
0:01:37.3]} 21. Re1 {[%clk 0:01:40.8]} 21... Nf5 {[%clk 0:01:23.1]} 22. Red1
{[%clk 0:01:32.2]} 22... d5 {[%clk 0:01:19.7]} 23. Re1 {[%clk 0:01:30.4]} 23...
Rc8 {[%clk 0:01:14.3]} 24. Rxd5 {[%clk 0:01:17.4]} 24... Nd4 {[%clk 0:01:13.5]}
25. Rd7+ {[%clk 0:01:01.5]} 25... Kf8 {[%clk 0:01:09]} 26. Bd3 {[%clk
0:00:59.7]} 26... Nc6 {[%clk 0:00:51.9]} 27. Bxh7 {[%clk 0:00:55.1]} 27... f5
{[%clk 0:00:49]} 28. g4 {[%clk 0:00:54.6]} 28... Nb4 {[%clk 0:00:36]} 29. gxf5
{[%clk 0:00:51.8]} 29... Rxc2+ {[%clk 0:00:34.5]} 30. Kb1 {[%clk 0:00:49.1]}
30... Rff2 {[%clk 0:00:29]} 31. fxe6 {[%clk 0:00:44.9]} 31... Rce2 {[%clk
0:00:15.8]} 32. e7+ {[%clk 0:00:43]} 32... Ke8 {[%clk 0:00:15.9]} 33. Rdd1
{[%clk 0:00:36.8]} 33... Rxb2+ {[%clk 0:00:15.3]} 34. Ka1 {[%clk 0:00:34.3]}
34... Rxa2+ {[%clk 0:00:15.5]} 35. Kb1 {[%clk 0:00:34.7]} 35... Rab2+ {[%clk
0:00:15.9]} 36. Kc1 {[%clk 0:00:35]} 36... Na2# {[%clk 0:00:14.8]} 0-1

[Event "Late-Titled-Tuesday-Blitz-June-18-2024"]
[Site "Chess.com"]
[Date "2024.06.18"]
[Round "1"]
[White "fly_21"]
[Black "yuriydovzik"]
[Result "1-0"]
[WhiteElo "2574"]
[BlackElo "2161"]
[TimeControl "180+1"]
[EndTime "14:06:43 PDT"]
[Termination "fly_21 won on time"]

1. d4 {[%clk 0:03:00.3]} 1... Nf6 {[%clk 0:02:57]} 2. c4 {[%clk 0:03:00.2]} 2...
e6 {[%clk 0:02:56]} 3. g3 {[%clk 0:03:00.3]} 3... Bb4+ {[%clk 0:02:52.2]} 4. Bd2
{[%clk 0:03:00.2]} 4... Bxd2+ {[%clk 0:02:49.5]} 5. Qxd2 {[%clk 0:03:01.1]} 5...
d5 {[%clk 0:02:46.4]} 6. Nf3 {[%clk 0:03:00.2]} 6... O-O {[%clk 0:02:45.3]} 7.
Bg2 {[%clk 0:03:00.4]} 7... Ne4 {[%clk 0:02:37.9]} 8. Qc2 {[%clk 0:02:58.7]}
8... c6 {[%clk 0:02:30.4]} 9. O-O {[%clk 0:02:58.5]} 9... f5 {[%clk 0:02:25.7]}
10. e3 {[%clk 0:02:56.3]} 10... Bd7 {[%clk 0:02:15.4]} 11. Nbd2 {[%clk
0:02:47.4]} 11... Be8 {[%clk 0:02:10.8]} 12. Ne5 {[%clk 0:02:47.7]} 12... Nd7
{[%clk 0:02:06.6]} 13. Nd3 {[%clk 0:02:48]} 13... Rc8 {[%clk 0:01:55.5]} 14. Nf3
{[%clk 0:02:45.7]} 14... Bh5 {[%clk 0:01:51.9]} 15. Nfe5 {[%clk 0:02:45.8]}
15... Nxe5 {[%clk 0:01:38.9]} 16. Nxe5 {[%clk 0:02:46.7]} 16... Nd6 {[%clk
0:01:22.3]} 17. Rac1 {[%clk 0:02:23.6]} 17... Nf7 {[%clk 0:01:16.5]} 18. Nd3
{[%clk 0:01:49]} 18... Nd6 {[%clk 0:01:11.9]} 19. c5 {[%clk 0:01:34]} 19... Ne4
{[%clk 0:01:04.1]} 20. b4 {[%clk 0:01:30.7]} 20... a6 {[%clk 0:01:02.9]} 21. a4
{[%clk 0:01:29.9]} 21... Ra8 {[%clk 0:00:55.7]} 22. Ne5 {[%clk 0:01:28.5]} 22...
Qc7 {[%clk 0:00:47.1]} 23. Qb2 {[%clk 0:01:28.1]} 23... Rfb8 {[%clk 0:00:42.5]}
24. f3 {[%clk 0:01:17]} 24... Nf6 {[%clk 0:00:35]} 25. Nd3 {[%clk 0:01:09.8]}
25... Be8 {[%clk 0:00:28.6]} 26. Rce1 {[%clk 0:01:02.2]} 26... Rd8 {[%clk
0:00:19.7]} 27. Nf4 {[%clk 0:01:02.2]} 27... Bf7 {[%clk 0:00:15.1]} 28. Nd3
{[%clk 0:01:01.2]} 28... Be8 {[%clk 0:00:13.9]} 29. Nf4 {[%clk 0:01:00.5]} 29...
Bf7 {[%clk 0:00:13.7]} 30. b5 {[%clk 0:01:01.1]} 30... axb5 {[%clk 0:00:12.7]}
31. axb5 {[%clk 0:01:02]} 31... Ra5 {[%clk 0:00:09.6]} 32. b6 {[%clk 0:00:49.1]}
32... Qd7 {[%clk 0:00:05.4]} 33. Nd3 {[%clk 0:00:46.3]} 33... Rda8 {[%clk
0:00:03.9]} 34. Ra1 {[%clk 0:00:46]} 34... Qc8 {[%clk 0:00:02.1]} 35. Qc3 {[%clk
0:00:42.7]} 1-0

[Event "Late-Titled-Tuesday-Blitz-June-18-2024"]
[Site "Chess.com"]
[Date "2024.06.18"]
[Round "1"]
[White "egnfanclub"]
[Black "crazy_but_lazy"]
[Result "0-1"]
[WhiteElo "2356"]
[BlackElo "2659"]
[TimeControl "180+1"]
[EndTime "14:06:49 PDT"]
[Termination "crazy_but_lazy won by resignation"]

1. e4 {[%clk 0:02:36.6]} 1... g6 {[%clk 0:02:58.8]} 2. Nc3 {[%clk 0:02:31.8]}
2... Bg7 {[%clk 0:02:58.7]} 3. f4 {[%clk 0:02:31]} 3... a6 {[%clk 0:02:57.7]} 4.
Nf3 {[%clk 0:02:30.1]} 4... b5 {[%clk 0:02:57.7]} 5. d4 {[%clk 0:02:25.3]} 5...
Bb7 {[%clk 0:02:57.8]} 6. Bd3 {[%clk 0:02:25.4]} 6... d6 {[%clk 0:02:57.2]} 7.
O-O {[%clk 0:02:24.8]} 7... Nd7 {[%clk 0:02:55]} 8. Qe1 {[%clk 0:02:24.3]} 8...
c5 {[%clk 0:02:54.8]} 9. d5 {[%clk 0:02:21.8]} 9... c4 {[%clk 0:02:48.2]} 10.
Be2 {[%clk 0:02:21.5]} 10... Qb6+ {[%clk 0:02:45.8]} 11. Kh1 {[%clk 0:02:20.5]}
11... Ngf6 {[%clk 0:02:46.4]} 12. Bd1 {[%clk 0:02:18.4]} 12... b4 {[%clk
0:02:42.8]} 13. Be3 {[%clk 0:02:16.7]} 13... Qa5 {[%clk 0:02:35.2]} 14. e5
{[%clk 0:02:04.4]} 14... bxc3 {[%clk 0:02:32.3]} 15. exf6 {[%clk 0:02:04.2]}
15... Bxf6 {[%clk 0:02:32.3]} 16. Bd4 {[%clk 0:01:52.5]} 16... Qxd5 {[%clk
0:02:32.2]} 17. bxc3 {[%clk 0:01:49.6]} 17... Bxd4 {[%clk 0:02:28.2]} 18. cxd4
{[%clk 0:01:50.5]} 18... O-O {[%clk 0:02:27.6]} 19. Qxe7 {[%clk 0:01:43.8]}
19... Bc6 {[%clk 0:02:27.6]} 20. c3 {[%clk 0:01:33.1]} 20... Rae8 {[%clk
0:02:27.3]} 21. Qh4 {[%clk 0:01:33]} 21... Re3 {[%clk 0:02:26.3]} 22. Re1 {[%clk
0:01:22.7]} 22... Rfe8 {[%clk 0:02:23.1]} 23. Rxe3 {[%clk 0:01:22.5]} 23... Rxe3
{[%clk 0:02:24]} 24. Rc1 {[%clk 0:01:14.1]} 24... Kg7 {[%clk 0:02:22.4]} 25. Qf2
{[%clk 0:01:13.7]} 25... Re8 {[%clk 0:02:17.6]} 26. Bc2 {[%clk 0:01:12]} 26...
Nf6 {[%clk 0:02:15.2]} 27. Re1 {[%clk 0:01:11.1]} 27... Rb8 {[%clk 0:01:59.4]}
28. Bb1 {[%clk 0:00:58.2]} 28... h6 {[%clk 0:01:54.6]} 29. h3 {[%clk 0:00:56.8]}
29... a5 {[%clk 0:01:42]} 30. f5 {[%clk 0:00:56.2]} 30... g5 {[%clk 0:01:41.7]}
31. Nh2 {[%clk 0:00:51]} 31... a4 {[%clk 0:01:33.6]} 32. Ng4 {[%clk 0:00:51.1]}
32... a3 {[%clk 0:01:33.9]} 33. Nxf6 {[%clk 0:00:50.6]} 33... Kxf6 {[%clk
0:01:34.8]} 34. Be4 {[%clk 0:00:50.4]} 34... Qxe4 {[%clk 0:01:11]} 35. Rxe4
{[%clk 0:00:50.1]} 35... Bxe4 {[%clk 0:01:11.9]} 36. d5 {[%clk 0:00:51]} 36...
Rb1+ {[%clk 0:01:01.4]} 37. Kh2 {[%clk 0:00:50.9]} 37... Rb2 {[%clk 0:01:02.3]}
38. Qd4+ {[%clk 0:00:51.1]} 38... Kxf5 {[%clk 0:01:02.9]} 39. Qxc4 {[%clk
0:00:46]} 39... Rxg2+ {[%clk 0:01:02.4]} 40. Kh1 {[%clk 0:00:46.5]} 40... Rxa2+
{[%clk 0:00:57.3]} 41. Kg1 {[%clk 0:00:47]} 41... Rb2 {[%clk 0:00:52.4]} 42.
Qf1+ {[%clk 0:00:29.7]} 42... Kg6 {[%clk 0:00:50.3]} 43. Qa6 {[%clk 0:00:25.5]}
43... a2 {[%clk 0:00:43.7]} 44. Qxd6+ {[%clk 0:00:25.6]} 44... f6 {[%clk
0:00:44.3]} 0-1

[Event "Late-Titled-Tuesday-Blitz-June-18-2024"]
[Site "Chess.com"]
[Date "2024.06.18"]
[Round "1"]
[White "shirovin"]
[Black "YegoryoCh"]
[Result "0-1"]
[WhiteElo "2122"]
[BlackElo "2565"]
[TimeControl "180+1"]
[EndTime "14:06:49 PDT"]
[Termination "YegoryoCh won on time"]

1. e4 {[%clk 0:02:59]} 1... e5 {[%clk 0:02:55.2]} 2. Nf3 {[%clk 0:02:57.4]} 2...
Nc6 {[%clk 0:02:54.9]} 3. Bc4 {[%clk 0:02:57.5]} 3... Nf6 {[%clk 0:02:54.2]} 4.
Ng5 {[%clk 0:02:52.2]} 4... d5 {[%clk 0:02:53.9]} 5. exd5 {[%clk 0:02:49.4]}
5... Na5 {[%clk 0:02:54.2]} 6. Bb5+ {[%clk 0:02:49.6]} 6... c6 {[%clk
0:02:54.7]} 7. dxc6 {[%clk 0:02:49.6]} 7... bxc6 {[%clk 0:02:55.6]} 8. Qf3
{[%clk 0:02:48.1]} 8... Rb8 {[%clk 0:02:56]} 9. Ba4 {[%clk 0:02:34.6]} 9... Bd6
{[%clk 0:02:55.5]} 10. Nc3 {[%clk 0:02:27.6]} 10... O-O {[%clk 0:02:55.6]} 11.
O-O {[%clk 0:02:25.9]} 11... Bg4 {[%clk 0:02:54.7]} 12. Qe3 {[%clk 0:02:15.3]}
12... Nc4 {[%clk 0:02:51.6]} 13. Qe1 {[%clk 0:02:07.9]} 13... Nxb2 {[%clk
0:02:48.1]} 14. Bxc6 {[%clk 0:01:53.1]} 14... Nc4 {[%clk 0:02:45.1]} 15. Bf3
{[%clk 0:01:37.2]} 15... Bf5 {[%clk 0:02:44.8]} 16. Nge4 {[%clk 0:01:32.8]}
16... Be7 {[%clk 0:02:43.1]} 17. d3 {[%clk 0:01:30.3]} 17... Nxe4 {[%clk
0:01:49.6]} 18. Nxe4 {[%clk 0:01:24.8]} 18... Na3 {[%clk 0:01:48.3]} 19. Qd2
{[%clk 0:01:12]} 19... Qc7 {[%clk 0:01:47.2]} 20. c4 {[%clk 0:01:04.1]} 20...
Bb4 {[%clk 0:01:40.5]} 21. Qg5 {[%clk 0:00:58.3]} 21... Nc2 {[%clk 0:01:27.5]}
22. Nf6+ {[%clk 0:00:45.3]} 22... Kh8 {[%clk 0:01:21.9]} 23. Qxf5 {[%clk
0:00:45]} 23... g6 {[%clk 0:01:12]} 24. Qh3 {[%clk 0:00:43.2]} 24... Kg7 {[%clk
0:01:09.8]} 25. Rb1 {[%clk 0:00:24.3]} 25... Kxf6 {[%clk 0:01:07.3]} 26. Qh4+
{[%clk 0:00:20.3]} 26... Ke6 {[%clk 0:01:03.1]} 27. Bd5+ {[%clk 0:00:17.1]}
27... Kd6 {[%clk 0:00:58.6]} 28. Qf6+ {[%clk 0:00:16.4]} 28... Kc5 {[%clk
0:00:59.1]} 29. Rb2 {[%clk 0:00:13.5]} 29... Bc3 {[%clk 0:00:57.5]} 30. Rxc2
{[%clk 0:00:09.7]} 30... Rb6 {[%clk 0:00:53]} 31. Qh4 {[%clk 0:00:05.9]} 31...
Bd4 {[%clk 0:00:50]} 32. Be3 {[%clk 0:00:05.4]} 32... f5 {[%clk 0:00:48.3]} 33.
Bxd4+ {[%clk 0:00:05]} 33... exd4 {[%clk 0:00:49]} 34. Qg3 {[%clk 0:00:03.8]}
34... Qe7 {[%clk 0:00:47.5]} 0-1

[Event "Late-Titled-Tuesday-Blitz-June-18-2024"]
[Site "Chess.com"]
[Date "2024.06.18"]
[Round "1"]
[White "JG1me"]
[Black "K_A_S_T_O_R"]
[Result "0-1"]
[WhiteElo "2461"]
[BlackElo "2831"]
[TimeControl "180+1"]
[EndTime "14:06:50 PDT"]
[Termination "K_A_S_T_O_R won by resignation"]

1. e4 {[%clk 0:02:59]} 1... c5 {[%clk 0:02:58.4]} 2. Nf3 {[%clk 0:02:58.2]} 2...
d6 {[%clk 0:02:58.5]} 3. Bb5+ {[%clk 0:02:58]} 3... Nd7 {[%clk 0:02:57.9]} 4.
Ba4 {[%clk 0:02:56.8]} 4... Nf6 {[%clk 0:02:56.1]} 5. O-O {[%clk 0:02:57.3]}
5... e6 {[%clk 0:02:51.7]} 6. Re1 {[%clk 0:02:57.3]} 6... a6 {[%clk 0:02:48.2]}
7. c3 {[%clk 0:02:57.4]} 7... b5 {[%clk 0:02:47]} 8. Bc2 {[%clk 0:02:58.1]} 8...
Bb7 {[%clk 0:02:47.4]} 9. d4 {[%clk 0:02:58.7]} 9... Be7 {[%clk 0:02:47.8]} 10.
Nbd2 {[%clk 0:02:58]} 10... Qc7 {[%clk 0:02:46.5]} 11. Nf1 {[%clk 0:02:57.9]}
11... O-O {[%clk 0:02:45.8]} 12. Ng3 {[%clk 0:02:57.8]} 12... Rfc8 {[%clk
0:02:41.2]} 13. d5 {[%clk 0:02:57]} 13... exd5 {[%clk 0:02:33.1]} 14. exd5
{[%clk 0:02:55.6]} 14... Bf8 {[%clk 0:02:33.5]} 15. Ne4 {[%clk 0:02:14.3]} 15...
Nxd5 {[%clk 0:02:08.1]} 16. Neg5 {[%clk 0:02:07.3]} 16... N5f6 {[%clk 0:01:59]}
17. Qd3 {[%clk 0:01:50.3]} 17... g6 {[%clk 0:01:51.4]} 18. Bf4 {[%clk
0:01:41.4]} 18... Re8 {[%clk 0:01:42.9]} 19. a4 {[%clk 0:01:39.8]} 19... Bc6
{[%clk 0:01:36.1]} 20. a5 {[%clk 0:01:09.1]} 20... Ne5 {[%clk 0:01:33.1]} 21.
Nxe5 {[%clk 0:01:07]} 21... dxe5 {[%clk 0:01:33.6]} 22. Bg3 {[%clk 0:01:07.2]}
22... Rad8 {[%clk 0:01:29.1]} 23. Qe2 {[%clk 0:01:06.9]} 23... Bd6 {[%clk
0:01:26.6]} 24. Ne4 {[%clk 0:01:06.3]} 24... Nxe4 {[%clk 0:01:26]} 25. Bxe4
{[%clk 0:01:07.2]} 25... Qb7 {[%clk 0:01:26.1]} 26. Bh4 {[%clk 0:01:07]} 26...
Rd7 {[%clk 0:01:21.5]} 27. Bf6 {[%clk 0:01:01.7]} 27... Bxe4 {[%clk 0:01:19.9]}
28. Qxe4 {[%clk 0:01:02.6]} 28... Qxe4 {[%clk 0:01:19.8]} 29. Rxe4 {[%clk
0:01:03.5]} 29... Re6 {[%clk 0:01:20.1]} 30. Bh4 {[%clk 0:00:58.6]} 30... f5
{[%clk 0:01:19.6]} 31. Re2 {[%clk 0:00:59.3]} 31... h6 {[%clk 0:01:19.2]} 32. f3
{[%clk 0:00:59.5]} 32... Bc7 {[%clk 0:01:18.8]} 33. Bf2 {[%clk 0:00:59.4]} 33...
c4 {[%clk 0:01:18.3]} 34. Rae1 {[%clk 0:00:57.2]} 34... Kf7 {[%clk 0:01:18.1]}
35. Bg3 {[%clk 0:00:55.5]} 35... Rd5 {[%clk 0:01:17.2]} 36. h4 {[%clk
0:00:48.2]} 36... Kf6 {[%clk 0:01:16.7]} 37. Ra1 {[%clk 0:00:43]} 37... Rd3
{[%clk 0:01:14.1]} 38. Kf1 {[%clk 0:00:43.1]} 38... Bd6 {[%clk 0:01:13.7]} 39.
Bf2 {[%clk 0:00:43.3]} 39... g5 {[%clk 0:01:10.3]} 40. Rae1 {[%clk 0:00:39]}
40... Bc7 {[%clk 0:01:07.4]} 41. Ra1 {[%clk 0:00:38.1]} 41... f4 {[%clk
0:01:02.8]} 42. Re4 {[%clk 0:00:33.2]} 42... Kf5 {[%clk 0:01:01.5]} 43. Ba7
{[%clk 0:00:21]} 43... g4 {[%clk 0:01:00.6]} 44. Rae1 {[%clk 0:00:20.3]} 44...
gxf3 {[%clk 0:01:00]} 45. gxf3 {[%clk 0:00:20.3]} 45... Rxf3+ {[%clk 0:01:00.4]}
46. Kg2 {[%clk 0:00:20.9]} 46... Rd3 {[%clk 0:00:58.6]} 47. Kh2 {[%clk
0:00:18.5]} 47... Rd2+ {[%clk 0:00:57]} 48. R4e2 {[%clk 0:00:18.8]} 48... Rxe2+
{[%clk 0:00:55.8]} 49. Rxe2 {[%clk 0:00:19.7]} 49... e4 {[%clk 0:00:56.3]} 50.
Kg1 {[%clk 0:00:19.4]} 50... f3 {[%clk 0:00:56.2]} 51. Rd2 {[%clk 0:00:19.2]}
51... e3 {[%clk 0:00:56.5]} 0-1

[Event "Late-Titled-Tuesday-Blitz-June-18-2024"]
[Site "Chess.com"]
[Date "2024.06.18"]
[Round "1"]
[White "jamengrand"]
[Black "FrankDux44"]
[Result "0-1"]
[WhiteElo "2305"]
[BlackElo "2627"]
[TimeControl "180+1"]
[EndTime "14:06:50 PDT"]
[Termination "FrankDux44 won by resignation"]

1. e4 {[%clk 0:03:00.9]} 1... c6 {[%clk 0:02:56.6]} 2. Nf3 {[%clk 0:03:00.7]}
2... d5 {[%clk 0:02:56]} 3. exd5 {[%clk 0:03:01.6]} 3... cxd5 {[%clk 0:02:56]}
4. Ne5 {[%clk 0:03:01.9]} 4... Nc6 {[%clk 0:02:51.8]} 5. d4 {[%clk 0:03:02]}
5... e6 {[%clk 0:02:51.4]} 6. c3 {[%clk 0:03:02.1]} 6... Nge7 {[%clk 0:02:42.6]}
7. Bd3 {[%clk 0:03:01]} 7... Nxe5 {[%clk 0:02:40.7]} 8. dxe5 {[%clk 0:03:00.8]}
8... Nc6 {[%clk 0:02:41.6]} 9. Bf4 {[%clk 0:02:57.5]} 9... Qb6 {[%clk
0:02:40.9]} 10. O-O {[%clk 0:02:54.7]} 10... Qxb2 {[%clk 0:02:39.7]} 11. Nd2
{[%clk 0:02:54.9]} 11... Qb6 {[%clk 0:02:33.6]} 12. Nf3 {[%clk 0:02:53.5]} 12...
Be7 {[%clk 0:02:32.5]} 13. Rb1 {[%clk 0:02:52.3]} 13... Qc7 {[%clk 0:02:31.6]}
14. Re1 {[%clk 0:02:51.8]} 14... Bd7 {[%clk 0:02:20]} 15. h4 {[%clk 0:02:48.6]}
15... h6 {[%clk 0:02:18.1]} 16. h5 {[%clk 0:02:47.9]} 16... Na5 {[%clk
0:02:12.7]} 17. Nd4 {[%clk 0:02:45.7]} 17... O-O {[%clk 0:01:36]} 18. Qg4 {[%clk
0:02:40]} 18... Kh8 {[%clk 0:01:35.6]} 19. Bxh6 {[%clk 0:02:35.4]} 19... gxh6
{[%clk 0:01:34.1]} 20. Qf3 {[%clk 0:02:14.7]} 20... Qxc3 {[%clk 0:01:20.8]} 21.
Qe3 {[%clk 0:01:53.5]} 21... Bg5 {[%clk 0:01:19]} 22. f4 {[%clk 0:01:53.2]}
22... Nc4 {[%clk 0:01:17.4]} 23. Qf2 {[%clk 0:01:39.6]} 23... Bh4 {[%clk
0:01:05.8]} 24. Qxh4 {[%clk 0:01:00.7]} 24... Qxd4+ {[%clk 0:01:04.3]} 25. Kh1
{[%clk 0:00:59.2]} 25... Qxd3 {[%clk 0:01:04.9]} 26. Qf6+ {[%clk 0:00:57.1]}
26... Kh7 {[%clk 0:01:05.2]} 27. Rxb7 {[%clk 0:00:52.7]} 27... Rad8 {[%clk
0:00:46.7]} 28. Qe7 {[%clk 0:00:36.3]} 28... Qd2 {[%clk 0:00:34.7]} 29. Rg1
{[%clk 0:00:29.7]} 29... Qxf4 {[%clk 0:00:33.9]} 30. Rgb1 {[%clk 0:00:21]} 30...
Nxe5 {[%clk 0:00:30.3]} 31. R7b3 {[%clk 0:00:17.9]} 31... Qg5 {[%clk 0:00:26]}
32. Qd6 {[%clk 0:00:16.4]} 32... Ba4 {[%clk 0:00:22.9]} 33. Rh3 {[%clk
0:00:15.7]} 33... Rxd6 {[%clk 0:00:21.3]} 0-1

[Event "Late-Titled-Tuesday-Blitz-June-18-2024"]
[Site "Chess.com"]
[Date "2024.06.18"]
[Round "1"]
[White "Igor_Lysyj"]
[Black "Chaubunagungamaug1"]
[Result "1-0"]
[WhiteElo "2848"]
[BlackElo "2477"]
[TimeControl "180+1"]
[EndTime "14:06:51 PDT"]
[Termination "Igor_Lysyj won by resignation"]

1. d4 {[%clk 0:02:59.9]} 1... d5 {[%clk 0:02:56]} 2. c4 {[%clk 0:02:59.7]} 2...
c6 {[%clk 0:02:56.5]} 3. Nf3 {[%clk 0:02:59.3]} 3... Nf6 {[%clk 0:02:56.4]} 4.
e3 {[%clk 0:02:59.7]} 4... Bf5 {[%clk 0:02:54.9]} 5. cxd5 {[%clk 0:02:58.8]}
5... cxd5 {[%clk 0:02:53.9]} 6. Qb3 {[%clk 0:02:58.9]} 6... Qc7 {[%clk
0:02:47.6]} 7. Bd2 {[%clk 0:02:58.5]} 7... Nc6 {[%clk 0:02:45.7]} 8. Bb5 {[%clk
0:02:56.3]} 8... e6 {[%clk 0:02:45.1]} 9. O-O {[%clk 0:02:55.6]} 9... Bd6 {[%clk
0:02:43.1]} 10. Bb4 {[%clk 0:02:54.6]} 10... O-O {[%clk 0:02:41.7]} 11. Bxd6
{[%clk 0:02:38]} 11... Qxd6 {[%clk 0:02:42.6]} 12. Bxc6 {[%clk 0:02:35.2]} 12...
bxc6 {[%clk 0:02:32.6]} 13. Nbd2 {[%clk 0:02:29.3]} 13... Rfc8 {[%clk 0:02:13]}
14. Rfc1 {[%clk 0:02:18.8]} 14... c5 {[%clk 0:02:04.3]} 15. Qa3 {[%clk
0:02:17.9]} 15... Ne4 {[%clk 0:01:10.2]} 16. Nxe4 {[%clk 0:02:04.9]} 16... dxe4
{[%clk 0:01:11.1]} 17. Nd2 {[%clk 0:02:01.9]} 17... Rab8 {[%clk 0:00:59.4]} 18.
Nb3 {[%clk 0:01:53]} 18... Qe7 {[%clk 0:00:46]} 19. Rxc5 {[%clk 0:01:49.3]}
19... Qg5 {[%clk 0:00:43.7]} 20. Qxa7 {[%clk 0:01:43.2]} 20... Ra8 {[%clk
0:00:36.7]} 21. Rxc8+ {[%clk 0:01:35.3]} 21... Rxc8 {[%clk 0:00:36.4]} 22. Rc1
{[%clk 0:01:26.7]} 22... Rxc1+ {[%clk 0:00:29.5]} 23. Nxc1 {[%clk 0:01:26.3]}
23... h5 {[%clk 0:00:30.2]} 24. Qb8+ {[%clk 0:01:15.4]} 24... Kh7 {[%clk
0:00:30.3]} 25. Ne2 {[%clk 0:00:54.8]} 25... Bg4 {[%clk 0:00:20.9]} 26. Nc3
{[%clk 0:00:48.3]} 26... Qa5 {[%clk 0:00:10]} 27. Qb7 {[%clk 0:00:39.7]} 27...
Bf5 {[%clk 0:00:09.4]} 28. Qxf7 {[%clk 0:00:39.6]} 28... Qb4 {[%clk 0:00:08.5]}
29. Qxh5+ {[%clk 0:00:39.3]} 29... Kg8 {[%clk 0:00:09.1]} 30. Qe2 {[%clk
0:00:39]} 30... Qb6 {[%clk 0:00:06.5]} 31. h3 {[%clk 0:00:38]} 31... Bg6 {[%clk
0:00:06.5]} 32. Qd2 {[%clk 0:00:36.8]} 32... Qb4 {[%clk 0:00:06.3]} 33. d5
{[%clk 0:00:35.8]} 33... Qd6 {[%clk 0:00:05.7]} 34. Qd4 {[%clk 0:00:32.4]} 34...
e5 {[%clk 0:00:05.5]} 35. Qc4 {[%clk 0:00:31.1]} 1-0